Cogmind - Beta 15 @@@ ROGUE MODE // 2025.05.07 @ 20:20:59 Player: UberDoot Result: Destroyed by KS-3PV(R) with Subdweller Laser Performance ------------- Evolutions (0) 0 Regions Visited (2) 400 Robots Destroyed (37) 185 Value Destroyed (847) 847 Prototype IDs (2) 40 Alien Tech Used (0) 0 Bonus (0) 0 TOTAL SCORE: 1472 Bonus ------- None Cogmind --------- Core Integrity 0/250 Matter 251/300 Energy 116/200 System Corruption 0% Temperature Cool (6) Movement Rolling (95) Location -10/Subcaves Parts ------- > --- POWER (1) -------- Subdweller Power Source > --- PROPULSION (2) --- Wheel Subdweller Monowheel > --- UTILITY (2) ------ Heat Sink Large Storage Unit > --- WEAPON (2) ------- Grenade Launcher > --- INVENTORY (15) --- Subdweller Power Source Subdweller Monowheel Disposable Heat Sink High-capacity Matter Pod (200) Improved Terrain Scanner Seismic Detector Subdweller Laser Subdweller Laser Subdweller Laser Subdweller Machine Gun Multitool Mining Claw Peak State ------------ > --- POWER ------------ Subdweller Power Source > --- PROPULSION ------- Wheel Subdweller Monowheel > --- UTILITY ---------- Heat Sink Large Storage Unit > --- WEAPON ----------- Subdweller Laser Battle Rifle > --- INVENTORY -------- Subdweller Power Source Subdweller Monowheel Disposable Heat Sink High-capacity Matter Pod Improved Terrain Scanner Seismic Detector Subdweller Laser Subdweller Laser Subdweller Machine Gun Grenade Launcher Multitool Mining Claw [Rating: 13] Favorites ----------- Power Subdweller Power Source Engine Subdweller Power Source Propulsion Light Treads Treads Light Treads Wheel Subdweller Monowheel Utility Heat Sink Device Heat Sink Storage Large Storage Unit Weapon Beam Cannon Energy Gun Subdweller Laser Energy Cannon Beam Cannon Ballistic Gun Light Assault Rifle Launcher Grenade Launcher Slashing Weapon Mining Claw Build | -11 -10 -10 ------- Run | Yrd Mat Sub Slots Evolved . | . . . Power . | . . . Propulsion . | . . . Utility . | . . . Weapon . | . . . Parts Attached 26 | 7 5 14 Power 3 | 1 1 1 Engine 3 | 1 1 1 Core . | . . . Reactor . | . . . Propulsion 7 | 2 . 5 Treads 5 | 2 . 3 Leg . | . . . Wheel 2 | . . 2 Hover . | . . . Flight . | . . . Utility 4 | 2 2 . Device 2 | 1 1 . Storage 2 | 1 1 . Processor . | . . . Hackware . | . . . Protection . | . . . Artifact . | . . . Weapon 12 | 2 2 8 Energy Gun 1 | . . 1 Energy Cannon 4 | . 2 2 Ballistic Gun 5 | 2 . 3 Ballistic Cannon . | . . . Launcher 1 | . . 1 Special Weapon . | . . . Impact Weapon . | . . . Slashing Weapon 1 | . . 1 Piercing Weapon . | . . . Special Melee Weapon . | . . . Unidentified Prototypes . | . . . Parts Lost 8 | . 1 7 Power 1 | . 1 . Propulsion 4 | . . 4 Utility . | . . . Weapon 3 | . . 3 Highest Loss Streak 4 | . 1 4 To Critical Strikes 2 | . . 2 Average Backups 12 | 4 8 14 Power . | . . . Propulsion 3 | 2 2 3 Utility 3 | . 2 4 Weapon 4 | . 2 5 Tool/Special . | . . . Unused Backups 22 | . 5 17 Power 1 | . . 1 Propulsion 6 | . 3 3 Utility 7 | . 1 6 Weapon 7 | . 1 6 Tool/Special 1 | . . 1 Average Slot Usage (%) 99 | . 99 99 Engine 14 | . 14 14 Treads 27 | . 28 27 Device 14 | . 14 14 Storage 14 | . 14 14 Energy Gun 1 | . . 1 Energy Cannon 15 | . 15 14 Ballistic Gun 8 | . 12 6 Slashing Weapon 3 | . . 4 Peak Build Rating 13 | 7 8 13 Average Rating 9 | 5 7 10 On Entrance 5 | . 7 8 Naked Turns . | . . . Heaviest Build 36 | 13 30 36 Greatest Support 40 | 40 40 40 Greatest Overweight (x) 1 | 1 . . Average Overweight (x) . | . . . Largest Inventory Capacity 15 | 8 15 15 Average Capacity 13 | 7 10 15 Most Carried 15 | 7 12 15 Average Carried 12 | 4 8 14 Final Capacity 15 | 8 15 15 Final Carried 12 | 7 12 12 Class Distribution -------------------- 84% | Mutant 15% | Scavenger-Mutant Dominant Class ---------------- Mutant | -10/Materials Mutant | -10/Subcaves Resources | -11 -10 -10 ----------- Run | Yrd Mat Sub Matter Collected 1096 | 312 305 479 Remotely . | . . . Salvage Created 1180 | 162 357 661 Parts 82 | 9 23 50 Haulers Intercepted 1 | . 1 . Recyclers Shooed . | . . . Parts Field Recycled . | . . . Retrieved Matter . | . . . Parts Self-Destructed 15 | . . 15 Prevented . | . . . Kills | -11 -10 -10 ------- Run | Yrd Mat Sub Combat Hostiles Destroyed 27 | . 9 18 Guns 15 | . 6 9 Cannons 10 | . 3 7 AOE 2 | . . 2 Classes Destroyed 10 | 2 4 4 Tunneler 3 | 3 . . Hauler 1 | . 1 . Recycler 2 | 1 1 . Turret 2 | . . 2 Watcher 2 | . 2 . Swarmer 12 | . 6 6 Grunt 3 | . 3 . Sentry 1 | . . 1 Artisan 2 | . . 2 Subdweller 11 | . . 11 Best Kill Streak 5 | 1 5 4 Combat Bots Only 4 | . 4 4 Max Kills in Single Turn 2 | 1 1 2 Gunslinging . | . . . Exploded 2 | . . 2 Melee . | . . . Uniques/NPCs Destroyed . | . . . Combat | -11 -10 -10 -------- Run | Yrd Mat Sub Hostile Shots Fired 139 | . 44 95 Missed 46 | . 14 32 Hits 93 | . 30 63 Projectile 93 | . 30 63 AOE 2 | . . 2 Critical Strikes 4 | . . 4 Damage Taken 1626 | . 270 1356 Core 265 | . 34 231 Absorbed by Shields . | . . . Core Remaining (%) 100 | 100 . . Volleys Fired 128 | 21 40 67 Largest 2 | 2 2 2 Hottest 120 | 40 120 120 Shots Fired 242 | 42 80 120 Gun 151 | 42 60 49 Cannon 79 | . 20 59 Launcher 12 | . . 12 Special . | . . . Kinetic 144 | 42 60 42 Thermal 86 | . 20 66 Explosive 12 | . . 12 Electromagnetic . | . . . Robot Hit Streak 15 | 8 9 15 Robot Miss Streak 3 | 2 3 3 Penetration Max . | . . . Secondary Targets 1 | . 1 . Max Gunslinging Chain 1 | . 1 . Shots Hit Robots 157 | 31 53 73 Core Hits 74 | 10 21 43 Critical Kills 1 | . 1 . Critical Parts Destroyed 1 | 1 . . Critical Strikes 2 | 1 1 . Meltdown 1 | . 1 . Destroy 1 | 1 . . Melee Attacks 24 | . . 24 Impact . | . . . Slashing 24 | . . 24 Piercing . | . . . Sneak Attacks 1 | . . 1 Combat Hostiles . | . . . Follow-up Attacks . | . . . Damage Inflicted 2537 | 245 561 1731 Guns 1186 | 245 334 607 Cannons 988 | . 227 761 Explosions 319 | . . 319 Melee 44 | . . 44 Ramming . | . . . Kinetic 1060 | 245 334 481 Thermal 1114 | . 227 887 Explosive 319 | . . 319 Electromagnetic . | . . . Impact . | . . . Slashing 44 | . . 44 Piercing . | . . . Highest Corruption . | . . . Average Corruption . | . . . Corruption Purged . | . . . Corruption Blocked . | . . . Overload Shots . | . . . Overflow Damage 28 | . 24 4 Projectiles 24 | . 24 . Explosions . | . . . Melee 4 | . . 4 Knockbacks . | . . . Impact . | . . . Kinetic . | . . . Secondary . | . . . Self-Inflicted Damage . | . . . Shots . | . . . Rammed . | . . . Targets Rammed . | . . . Kicked . | . . . Crushed . | . . . Highest Temperature 239 | . 210 239 Average Temperature 66 | . 75 53 Received Heat Transfer 505 | . 66 439 Siege Activations . | . . . Martial Activations . | . . . Shielding Activations . | . . . Robots Disrupted . | . . . Combat Hostiles . | . . . Robots Corrupted . | . . . Combat Hostiles . | . . . Parts Fried . | . . . Impact Corruptions . | . . . Robots Melted 1 | . 1 . Combat Hostiles . | . . . Parts Melted 3 | . . 3 Heat Transferred 2148 | . 481 1667 Parts Sabotaged . | . . . Parts Stolen . | . . . Parts Stripped . | . . . Power Chain Reactions . | . . . Alert | -11 -10 -10 ------- Run | Yrd Mat Sub Maximum Alert Level . | . . . Low Security (%) 100 | 100 100 . Level 1 . | . . . Level 2 . | . . . Level 3 . | . . . Level 4 . | . . . Level 5 . | . . . High Security . | . . . Max Security . | . . . Peak Influence 80 | 5 80 . Initial . | . . . Average 10 | . 12 . Influence Increases 691 | 20 266 405 Destroy 0b10 Robot/C 360 | . 180 180 Destroy 0b10 Robot/NC 40 | 20 20 . Destroy Leader 46 | . 46 . Successful Hack 20 | . 20 . Lose Combat Pursuer 225 | . . 225 Influence Decreases 482 | 20 266 196 Time Decay 350 | 20 194 136 Lost Part 70 | . 10 60 Purge Threat 62 | . 62 . Squads Dispatched 1 | . 1 . Investigation . | . . . Extermination . | . . . Reinforcement 1 | . 1 . Assault . | . . . Garrison . | . . . Intercept . | . . . Searches Triggered . | . . . Construction Impeded . | . . . Haulers Reinforced . | . . . Active Scanning Responses . | . . . Cargo Convoy Interrupts . | . . . Stealth | -11 -10 -10 --------- Run | Yrd Mat Sub Distress Signals 1 | . 1 . Communications Jammed . | . . . Distress Signals . | . . . Times Spotted 43 | . 17 26 Peak Tracking Total 4 | . 4 4 Tactical Retreats 3 | . . 3 Traps | -11 -10 -10 ------- Run | Yrd Mat Sub Traps Triggered 3 | . . 3 Indirectly . | . . . Trap Hack Attempts . | . . . Triggered . | . . . Disarmed . | . . . Reprogrammed . | . . . Reused . | . . . Traps Extracted . | . . . Installed . | . . . Triggered . | . . . Machines | -11 -10 -10 ---------- Run | Yrd Mat Sub Machines Disabled 3 | . . 3 Max in Single Turn 2 | . . 2 Machines Repaired . | . . . Machines Dismantled . | . . . Machines Sabotaged . | . . . Overloaded Fab Kills . | . . . Hacking | -11 -10 -10 --------- Run | Yrd Mat Sub Machines Accessed 7 | . 7 . Terminals 7 | . 7 . Fabricators . | . . . Repair Stations . | . . . Recycling Units . | . . . Scanalyzers . | . . . Garrison Access . | . . . Total Hacks 20 | . 20 . Successful 10 | . 10 . Failed 10 | . 10 . Catastrophic 1 | . 1 . Database Lockouts . | . . . Manual 15 | . 15 . Terminals 20 | . 20 . Fabricators . | . . . Repair Stations . | . . . Recycling Units . | . . . Scanalyzers . | . . . Garrison Access . | . . . Terminal Hacks 5 | . 5 . Part Schematic 1 | . 1 . Prototype ID Bank 1 | . 1 . Terminal Index 1 | . 1 . Unreport Threat 1 | . 1 . Locate Traps 1 | . 1 . Fabricator Hacks . | . . . Repair Station Hacks . | . . . Recycling Unit Hacks . | . . . Scanalyzer . | . . . Garrison Access Hacks . | . . . Unauthorized Hacks 5 | . 5 . Terminals 5 | . 5 . Skim 5 | . 5 . Fabricators . | . . . Repair Stations . | . . . Recycling Units . | . . . Scanalyzers . | . . . Garrison Access . | . . . Data Cores Recovered . | . . . Used . | . . . Hacking Detections 6 | . 6 . Full Trace Events . | . . . Feedback Events . | . . . Feedback Blocked . | . . . Robot Schematics Acquired . | . . . Robots Built . | . . . Authchips . | . . . Time . | . . . Total Robot Build Rating . | . . . Part Schematics Acquired 1 | . 1 . Parts Built . | . . . Authchips . | . . . Time . | . . . Total Part Build Rating . | . . . Parts Repaired . | . . . Time . | . . . Parts Recycled . | . . . Recycled Matter . | . . . Retrieved Matter . | . . . Retrieved Components . | . . . Parts Scanalyzed . | . . . Part Schematics Acquired . | . . . Parts Damaged . | . . . Bothacking | -11 -10 -10 ------------ Run | Yrd Mat Sub Used RIF Installer . | . . . Robots Hacked . | . . . Non-combat . | . . . Combat . | . . . Robot Hacks Applied . | . . . Relay Couplers Released . | . . . Fabnet Peak Effective % . | . . . Robots Rewired . | . . . Allies Hacked . | . . . Hacks Repelled . | . . . Allies | -11 -10 -10 -------- Run | Yrd Mat Sub Total Allies . | . . . Largest Group . | . . . Highest-Rated Group . | . . . Highest-Rated Ally . | . . . Total Orders . | . . . Ally Attacks . | . . . Total Damage . | . . . Kills . | . . . Allies Corrupted . | . . . Allies Melted . | . . . Intel | -11 -10 -10 ------- Run | Yrd Mat Sub Active Infowar (turns) 430 | 52 378 . Seismic 430 | 52 378 . Robot Analysis Total . | . . . Derelict Logs Recovered 1 | . . 1 Drone Launches . | . . . Drone Recoveries . | . . . Exploration | -11 -10 -10 ------------- Run | Yrd Mat Sub Turns Passed 4166 | 214 1039 2913 Spaces Moved 2141 | 91 447 1603 Core 7 | 7 . . Treads 2134 | 84 447 1603 Legs . | . . . Wheels . | . . . Hover . | . . . Flight . | . . . Fastest Speed 50 | 50 160 160 Average Speed 159 | 153 160 160 Slowest Speed 160 | 160 160 160 Overloaded Moves . | . . . Propulsion Burnouts . | . . . Robots Hopped . | . . . Potential Cave-ins . | . . . Cave-ins Triggered . | . . . Exploration Rate (%) 48 | 7 58 80 Regions Visited 2 Branch Regions 1 Pre-discovered Areas 1 | . 1 . Known Exits Taken 1 | . 1 . Unknown Exits Taken 1 | 1 . . Scrap Searched 2 | . . 2 Spaces Dug 1 | . . 1 Terrain Destroyed 49 | . . 49 Melee 1 | . . 1 Projectile 2 | . . 2 AOE 46 | . . 46 Terrain Rammed . | . . . Walls Destroyed . | . . . Machines Disabled . | . . . Actions | -11 -10 -10 --------- Run | Yrd Mat Sub Total 2614 | 129 708 1777 Wait 215 | 4 193 18 Move 2139 | 90 446 1603 Hop . | . . . Pick Up 37 | 7 13 17 Fast Attach 12 | 7 2 3 Attach 8 | . 1 7 Detach 2 | . 1 1 Swap 24 | . 2 22 Drop 25 | . 10 15 Fire 128 | 21 40 67 Melee 24 | . . 24 Ram . | . . . Kick . | . . . Crush . | . . . Escape Stasis . | . . . Rewire . | . . . Trap . | . . . Miscellaneous . | . . . Route ------- -11/Scrapyard -10/Materials (discovered 3 exits: [*Min x2] / *Sub) -10/Subcaves (discovered 2 exits: [*Mat] / [*Rec]) History --------- Turn | Location | Event 3 | -11/Scrapyard | Discovered new exit (range 16) 215 | -11/Scrapyard | Entered Materials 215 | -10/Materials | Discovered new exit (range 7) 311 | -10/Materials | Build established: Mutant 513 | -10/Materials | Discovered new exit (range 12) 982 | -10/Materials | Learned Storage stockpile data 1036 | -10/Materials | Identified exit to Subcaves 1050 | -10/Materials | Learned 2 Materials zone layouts 1064 | -10/Materials | Learned Storage stockpile data 1084 | -10/Materials | Learned 2 Mines zone layouts 1254 | -10/Materials | Entered Subcaves 1582 | -10/Subcaves | Learned 2 Materials zone layouts 1615 | -10/Subcaves | Ambushed by angry Subdweller bent on revenge 1618 | -10/Subcaves | Ambushed by Subdweller buried in earth 1747 | -10/Subcaves | Shifting Twisted Machinery released Battle Rifle 1749 | -10/Subcaves | Shifting Twisted Machinery released Sub. Laser 1955 | -10/Subcaves | A swath of the cavern ceiling suddenly collapsed 2123 | -10/Subcaves | Ambushed by angry Subdweller bent on revenge 2379 | -10/Subcaves | Shifting Twisted Machinery released Sub. Monowheel 2381 | -10/Subcaves | Shifting Twisted Machinery released Sub. Beam Cannon 2522 | -10/Subcaves | Shifting Twisted Machinery released Sub. Power Source 2523 | -10/Subcaves | Shifting Twisted Machinery released Mak. Light Armor Plating 2543 | -10/Subcaves | Discovered new exit (range 9) 3395 | -10/Subcaves | Discovered new exit (range 12) 3525 | -10/Subcaves | Core integrity fell below 50% 3639 | -10/Subcaves | A swath of the cavern ceiling suddenly collapsed 3806 | -10/Subcaves | Build established: Scavenger-Mutant 4113 | -10/Subcaves | Core integrity fell below 20% 4167 | -10/Subcaves | Destroyed by KS-3PV(R) with Subdweller Laser Last Messages --------------- 03873_ Found Battle Rifle. 03873_ Found 41 Matter. 03885_ Dropped Disposable Heat Sink. 03893_ Acquired Battle Rifle. 04108_ VV-VL2(R): "GOODGOOD!" 04123_ VV-VL2(R) destroyed. 04128_ The unstable cave ceiling collapses. 04129_ Acquired 50 matter. 04143_ Triggered Piercing Trap. 04143_ Spikes shoot up from the floor. 04143_ Critical hit (Impale). 04149_ Triggered Piercing Trap. 04149_ Spikes shoot up from the floor. 04149_ Critical hit (Impale). 04149_ Sub. Machine Gun destroyed. 04149_ Critical hit (Impale). 04149_ Lgt. Treads destroyed. 04161_ Sub. Laser shoots sparks and powers down. 04163_ Critical hit (Destroy). 04163_ Battle Rifle destroyed. Map ----- +----------------------------------------------------+ | ?????????????????????????????????????????????????? | | ?????????????????????????????????????????????????? | | ?????????????????????????????????????????????????? | | ?????????????????????????????????????????????????? | | ?????????????????????????????????????????????????? | | ?????????????????????????????????????????????????? | | ?????????????????????????????????????????????????? | | ?????????????????????????????????????????????????? | | ?????????????????????????????????????????????????? | | ?????????????????????????????????????????????????? | | ?????????????????????????????????????????????????? | | ?????????????????????????????????????????????????? | | ?????????????????????????????????????????????????? | | ?????????????????????????????????????????????????? | | ???????????????????????????????????????###???????? | | ??????????????????############??#?????## #???????? | | ??????????????????? # # ## # ????# #???????? | | ???????????????????? ??? ?### #???????# | | ????????????????????? ?????# # # #??????## | | ?????????????????????? R ?????# ^ ###????# | | ??????????????????????? R #?????????# ###### | | ???????????????????????? #????????## | | ???????????????????????? #??####?## | | ???????????????????????## #?## ### # # ## | | ???????????????????????# ### ^ ### ##### | | ????????????????????????#@ !%=#?# | | ????????????????????????## ##?# | | ?????????????????????????###### # ##??### | | ??????????????????????????????# #?????### | | ??????????????????????????????#######???????# ## | | ????????????????????????????????????????????## ### | | ?????????????????????????????????????????????##### | | ???????????????????????????????????????????????## | | ?????????????????????????????????????????????### | | ???????????????????????????????????????????### | | ???????????????????????????????????????????# | | ???????????????????????????????????????????### ## | | ?????????????????????????????????????????????###?# | | ?????????????????????????????????????????????????# | | ?????????????????????????????????????????????????# | | ?????????????????????????????????????????????????# | | ?????????????????????????????????????????????????? | | ?????????????????????????????????????????????????? | | ???????????????????????????????????????????????### | | ??????????????????????????????????????????????## | | ??????????????????????????????????????????????# # | | ??????????????????????????????????????????????# | | ????????????????????????????????????????????#### | | ???????????????????????????????????????????## | | ???????????????????????????????????????????# | +----------------------------------------------------+ Best States ------------- Heat Dissipation 35 Energy Generation 15 Energy Capacity 250 Matter Stores 300 Matter Capacity 300 Sight Range 16 Terrain Scan Density 10 Evasion (%) 40 Recoil Reduction 2 Item Schematics ----------------- Huge Storage Unit | -10/Materials | Hacked Robot Schematics ------------------ None Fabricated ------------ Nothing Repaired ---------- Nothing Alien Tech Used ----------------- None Achievements -------------- None Challenges ------------ None Game ------ Seed ArmoredRemoteMachine Manual? 0 Play Time 00:24:30 Cumulative 218.4 hours Start 2025.05.07 @ 20:04:03 End 2025.05.07 @ 20:20:59 Sessions 1 Manual Loads 0 Difficulty Rogue Special Mode None Game No. 118 Rogue 118 Adventurer 0 Explorer 0 Win Type - Total 3 Types 3/0/0/0/0/0/0/0/0/0 Lore% 72 Gallery% 70 Achievement% 62 Wizard Run 0 Options --------- Layout 0 ASCII 1 Keyboard 1 Movement Numpad Keybinds 0 Fullscreen 2 Font 20/Terminus Map View 66x50 Zoom Use 0% Tactical HUD 1 Map Filters NONE Filters NONE Steam 1 RUN: 06e5140a-e218-4180-9276-d310fc5222eb